[Event "Teplice Open 2019"]
[Site "Teplice"]
[Date "2019.06.19"]
[Round "5.20"]
[White "Song, Raymond"]
[Black "Worek, Joanna"]
[Result "1/2-1/2"]
[ECO "E15"]
[WhiteElo "2450"]
[BlackElo "2311"]
[Annotator "ChessBase"]
[PlyCount "147"]
[EventDate "2019.06.15"]
[EventType "swiss"]
[EventCountry "CZE"]
[SourceTitle "playchess.com"]
[Source "ChessBase"]
[SourceQuality "1"]
[TimeControl "40/5400+30:1800+30"]

1. d4 {[%emt 0:00:00]} d5 {[%emt 0:00:00]} 2. c4 {[%emt 0:00:00]} e6 {[%emt 0:00:00]} 3. Nf3 {[%emt 0:00:00]} Nf6 {[%emt 0:00:00]} 4. g3 {[%emt 0:00:00]} Bb4+ {[%emt 0:00:00]} 5. Bd2 {[%emt 0:00:00]} Be7 {[%emt 0:00:00]} 6. Bg2 {[%emt 0:00:00]} c6 {[%emt 0:00:26]} 7. Qc2 {[%emt 0:00:12]} b6 {[%emt 0:00:50]} 8. b3 {[%emt 0:01:21]} O-O {[%emt 0:00:27]} 9. O-O {[%emt 0:00:04]} Ba6 {[%emt 0:01:34]} 10. Rd1 {[%emt 0:00:09]} Nbd7 {[%emt 0:00:11]} 11. a4 {[%emt 0:00:05]} Rc8 {[%emt 0:03:12]} 12. a5 {[%emt 0:01:34]} b5 {[%emt 0:07:04]} 13. cxd5 {[%emt 0:01:06]} cxd5 {[%emt 0:00:39]} 14. Qb2 {[%emt 0:00:12]} Ne4 {[%emt 0:01:19]} 15. b4 {[%emt 0:03:56]} Nd6 {[%emt 0:07:31]} 16. Na3 {[%emt 0:02:07]} Nf6 {[%emt 0:07:25]} 17. Ne5 {[%emt 0:04:38]} Nfe4 {[%emt 0:00:46]} 18. Be1 {[%emt 0:01:14]} f6 {[%emt 0:02:21]} 19. Nd3 {[%emt 0:02:34]} f5 {[%emt 0:09:44]} 20. f3 {[%emt 0:02:53]} Nc4 {[%emt 0:02:35]} 21. Nxc4 {[%emt 0:00:34]} bxc4 {[%emt 0:00:25]} 22. Nf4 {[%emt 0:01:24]} Nd6 {[%emt 0:02:35]} 23. Nxe6 {[%emt 0:00:14]} Qd7 {[%emt 0:00:01]} 24. Nxf8 {[%emt 0:00:52]} Rxf8 {[%emt 0:00:01]} 25. b5 {[%emt 0:07:10]} Bxb5 {[%emt 0:04:13]} 26. Qc2 {[%emt 0:07:47]} a6 {[%emt 0:03:01]} 27. Bb4 {[%emt 0:03:40]} f4 {[%emt 0:02:44]} 28. Bc5 {[%emt 0:07:24]} fxg3 {[%emt 0:09:26]} 29. hxg3 {[%emt 0:00:31]} Nf5 {[%emt 0:00:17]} 30. e4 {[%emt 0:14:47]} Ne3 {[%emt 0:07:00]} 31. Qc3 {[%emt 0:00:32]} Nxd1 {[%emt 0:00:26]} 32. Rxd1 {[%emt 0:00:04]} Bxc5 {[%emt 0:05:59]} 33. dxc5 {[%emt 0:00:05]} Qc7 {[%emt 0:00:02]} 34. exd5 {[%emt 0:08:13]} Qxc5+ {[%emt 0:00:06]} 35. Rd4 {[%emt 0:01:11]} Re8 {[%emt 0:06:12]} 36. Kf2 {[%emt 0:08:58]} Rd8 {[%emt 0:06:30]} 37. f4 {[%emt 0:01:51]} Rd6 {[%emt 0:01:07]} 38. Bf3 {[%emt 0:04:33]} Kf8 {[%emt 0:02:04]} 39. g4 {[%emt 0:01:48]} Rf6 {[%emt 0:01:30]} 40. Kg3 {[%emt 0:00:34]} h6 {[%emt 0:02:42]} 41. Re4 {[%emt 0:36:18]} Rd6 {[%emt 0:32:24]} 42. Re5 {[%emt 0:01:26]} Be8 {[%emt 0:00:00]} 43. Re1 {[%emt 0:00:00]} Bf7 {[%emt 0:00:00]} 44. Rb1 {[%emt 0:00:00]} Rd8 {[%emt 0:00:00]} 45. Rc1 {[%emt 0:00:00]} Rc8 {[%emt 0:00:00]} 46. Rd1 {[%emt 0:00:00]} Rd8 {[%emt 0:00:00]} 47. Rc1 {[%emt 0:00:00]} Rc8 {[%emt 0:00:00]} 48. Rd1 {[%emt 0:00:00]} Rd8 {[%emt 0:00:00]} 49. Rh1 {[%emt 0:00:00]} Re8 {[%emt 0:00:00]} 50. Rd1 {[%emt 0:05:40]} Re3 {[%emt 0:00:00]} 51. Qc2 {[%emt 0:00:01]} Qa3 {[%emt 0:01:44]} 52. Qf2 {[%emt 0:00:02]} h5 {[%emt 0:00:52]} 53. Kg2 {[%emt 0:01:48]} hxg4 {[%emt 0:00:05]} 54. Bxg4 {[%emt 0:00:00]} Rd3 {[%emt 0:00:45]} 55. Rxd3 {[%emt 0:00:46]} cxd3 {[%emt 0:00:01]} 56. Bf3 {[%emt 0:01:58]} Qxa5 {[%emt 0:00:28]} 57. Qd4 {[%emt 0:00:34]} Qb5 {[%emt 0:00:45]} 58. d6 {[%emt 0:00:09]} Be6 {[%emt 0:00:50]} 59. Be4 {[%emt 0:00:02]} d2 {[%emt 0:00:36]} 60. Qxd2 {[%emt 0:00:12]} a5 {[%emt 0:00:49]} 61. Kg3 {[%emt 0:01:39]} a4 {[%emt 0:00:14]} 62. Qd4 {[%emt 0:01:52]} a3 {[%emt 0:01:26]} 63. Qa7 {[%emt 0:00:01]} Qb3+ {[%emt 0:02:12]} 64. Bf3 {[%emt 0:00:09]} a2 {[%emt 0:00:46]} 65. Qe7+ {[%emt 0:02:31]} Kg8 {[%emt 0:00:01]} 66. Qe8+ {[%emt 0:00:12]} Kh7 {[%emt 0:00:02]} 67. Qh5+ {[%emt 0:00:26]} Kg8 {[%emt 0:00:01]} 68. Qe8+ {[%emt 0:00:48]} Kh7 {[%emt 0:00:02]} 69. Qh5+ {[%emt 0:00:03]} Kg8 {[%emt 0:00:07]} 70. Qa5 {[%emt 0:00:35]} Qe3 {[%emt 0:02:18]} 71. Qd8+ {[%emt 0:01:56]} Kh7 {[%emt 0:00:12]} 72. Qh4+ {[%emt 0:00:04]} Kg8 {[%emt 0:00:25]} 73. Qd8+ {[%emt 0:00:20]} Kh7 {[%emt 0:00:10]} 74. Qh4+ {[%emt 0:01:11]} 1/2-1/2

[Event "Teplice Open 2019"]
[Site "Teplice"]
[Date "2019.06.19"]
[Round "5.21"]
[White "Ahlander, Bjorn"]
[Black "Georgescu, Lena"]
[Result "0-1"]
[ECO "E43"]
[WhiteElo "2421"]
[BlackElo "2200"]
[Annotator "NA"]
[PlyCount "74"]
[EventDate "2019.06.15"]
[EventType "swiss"]
[EventCountry "CZE"]
[SourceTitle "playchess.com"]
[Source "ChessBase"]
[SourceQuality "1"]
[TimeControl "40/5400+30:1800+30"]

1. d4 {[%emt 0:00:00]} Nf6 {[%emt 0:00:00]} 2. c4 {[%emt 0:00:00]} e6 {[%emt 0:00:00]} 3. Nc3 {[%emt 0:00:28]} Bb4 {[%emt 0:00:00]} 4. e3 {[%emt 0:00:17]} O-O {[%emt 0:00:06]} 5. Bd3 {[%emt 0:00:23]} c5 {[%emt 0:00:21]} 6. Nf3 {[%emt 0:00:09]} b6 {[%emt 0:00:29]} 7. O-O {[%emt 0:00:50]} Bb7 {[%emt 0:00:13]} 8. Bd2 {[%emt 0:03:16]} d6 {[%emt 0:04:47]} 9. Qe2 {[%emt 0:02:06]} Nbd7 {[%emt 0:01:46]} 10. a3 {[%emt 0:06:05]} Bxc3 {[%emt 0:04:27]} 11. Bxc3 {[%emt 0:00:14]} Ne4 {[%emt 0:01:47]} 12. Be1 {[%emt 0:00:35]} Ndf6 {[%emt 0:05:23]} 13. Rd1 {[%emt 0:03:09]} Qc7 {[%emt 0:05:10]} 14. Nh4 {[%emt 0:14:39]} cxd4 {[%emt 0:04:37]} 15. exd4 {[%emt 0:02:18]} d5 {[%emt 0:00:26]} 16. b3 {[%emt 0:08:25]} Rac8 {[%emt 0:07:11]} 17. f3 {[%emt 0:03:11]} Nd6 {[%emt 0:00:50]} 18. Rc1 {[%emt 0:00:03]} dxc4 {[%emt 0:05:40]} 19. bxc4 {[%emt 0:00:08]} Ba6 {[%emt 0:03:07]} 20. Bg3 {[%emt 0:15:02]} Nh5 {[%emt 0:12:45]} 21. Be5 {[%emt 0:03:33]} f6 {[%emt 0:01:10]} 22. Bxd6 {[%emt 0:13:26]} Qxd6 {[%emt 0:00:05]} 23. Qe4 {[%emt 0:00:10]} f5 {[%emt 0:02:58]} 24. Qe3 {[%emt 0:00:02]} f4 {[%emt 0:03:14]} 25. Qf2 {[%emt 0:10:44]} g5 {[%emt 0:03:28]} 26. Rfd1 {[%emt 0:00:02]} Qe7 {[%emt 0:03:05]} 27. Qc2 {[%emt 0:05:04]} gxh4 {[%emt 0:05:08]} 28. Qa4 {[%emt 0:00:02]} Bb7 {[%emt 0:02:34]} 29. Qxa7 {[%emt 0:00:04]} Qg7 {[%emt 0:04:46]} 30. Qxb6 {[%emt 0:03:41]} Bxf3 {[%emt 0:00:45]} 31. Qxe6+ {[%emt 0:04:08]} Kh8 {[%emt 0:00:02]} 32. Rd2 {[%emt 0:00:25]} Qxd4+ {[%emt 0:02:33]} 33. Rf2 {[%emt 0:00:26]} Bd5 {[%emt 0:05:50]} 34. Qh6 {[%emt 0:01:57]} Nf6 {[%emt 0:04:08]} 35. Qxf4 {[%emt 0:00:12]} Ne4 {[%emt 0:01:01]} 36. Qxh4 {[%emt 0:01:41]} Qxf2+ {[%emt 0:00:28]} 37. Qxf2 {[%emt 0:00:05]} Nxf2 {[%emt 0:00:14]} 0-1

[Event "Teplice Open 2019"]
[Site "Teplice"]
[Date "2019.06.19"]
[Round "5.22"]
[White "Hollan, Petr"]
[Black "Siddharth, Jagadeesh"]
[Result "1-0"]
[ECO "B33"]
[WhiteElo "2261"]
[BlackElo "2416"]
[Annotator "NA"]
[PlyCount "85"]
[EventDate "2019.06.15"]
[EventType "swiss"]
[EventCountry "CZE"]
[SourceTitle "playchess.com"]
[Source "ChessBase"]
[SourceQuality "1"]
[TimeControl "40/5400+30:1800+30"]

1. e4 {[%emt 0:00:18]} c5 {[%emt 0:00:00]} 2. Nf3 {[%emt 0:00:17]} Nc6 {[%emt 0:00:00]} 3. d4 {[%emt 0:00:06]} cxd4 {[%emt 0:00:00]} 4. Nxd4 {[%emt 0:00:08]} Nf6 {[%emt 0:00:00]} 5. Nc3 {[%emt 0:00:07]} e5 {[%emt 0:00:01]} 6. Ndb5 {[%emt 0:00:04]} d6 {[%emt 0:00:06]} 7. Bg5 {[%emt 0:00:21]} a6 {[%emt 0:00:05]} 8. Na3 {[%emt 0:00:06]} b5 {[%emt 0:00:06]} 9. Bxf6 {[%emt 0:00:05]} gxf6 {[%emt 0:00:05]} 10. Nd5 {[%emt 0:00:06]} f5 {[%emt 0:00:05]} 11. c3 {[%emt 0:00:14]} Bg7 {[%emt 0:00:06]} 12. Bd3 {[%emt 0:00:08]} Be6 {[%emt 0:06:04]} 13. Nxb5 {[%emt 0:00:14]} axb5 {[%emt 0:03:41]} 14. Bxb5 {[%emt 0:00:41]} Rc8 {[%emt 0:03:39]} 15. Qa4 {[%emt 0:00:06]} Bd7 {[%emt 0:01:38]} 16. exf5 {[%emt 0:00:07]} O-O {[%emt 0:04:12]} 17. O-O {[%emt 0:01:22]} Kh8 {[%emt 0:06:31]} 18. Qe4 {[%emt 0:04:45]} f6 {[%emt 0:03:32]} 19. Rfd1 {[%emt 0:01:56]} Rb8 {[%emt 0:24:51]} 20. a4 {[%emt 0:03:40]} Ne7 {[%emt 0:13:17]} 21. Bxd7 {[%emt 0:03:25]} Nxd5 {[%emt 0:02:17]} 22. Rxd5 {[%emt 0:05:03]} Qxd7 {[%emt 0:00:09]} 23. b4 {[%emt 0:00:11]} Qc7 {[%emt 0:04:59]} 24. Rd3 {[%emt 0:10:32]} Rfd8 {[%emt 0:04:39]} 25. Qd5 {[%emt 0:04:16]} Qd7 {[%emt 0:01:35]} 26. g4 {[%emt 0:00:16]} Bh6 {[%emt 0:05:33]} 27. b5 {[%emt 0:08:19]} Bf4 {[%emt 0:01:37]} 28. h3 {[%emt 0:05:39]} Qg7 {[%emt 0:05:32]} 29. a5 {[%emt 0:20:13]} Re8 {[%emt 0:04:17]} 30. a6 {[%emt 0:03:46]} e4 {[%emt 0:03:22]} 31. Rd4 {[%emt 0:00:33]} Qe7 {[%emt 0:02:55]} 32. a7 {[%emt 0:01:47]} Ra8 {[%emt 0:00:00]} 33. b6 {[%emt 0:00:08]} e3 {[%emt 0:00:11]} 34. Rxf4 {[%emt 0:02:19]} exf2+ {[%emt 0:00:08]} 35. Rxf2 {[%emt 0:01:12]} Qe3 36. Rb1 {[%emt 0:13:42]} Rad8 {[%emt 0:00:42]} 37. Qf3 {[%emt 0:03:17]} Qc5 {[%emt 0:00:15]} 38. Kg2 {[%emt 0:00:46]} d5 {[%emt 0:00:00]} 39. Qd3 {[%emt 0:06:20]} Re4 {[%emt 0:01:24]} 40. Qb5 {[%emt 0:02:28]} Qxc3 {[%emt 0:01:53]} 41. b7 {[%emt 0:05:55]} Re3 {[%emt 0:00:04]} 42. b8=Q {[%emt 0:00:45]} Rg3+ {[%emt 0:00:03]} 43. Qxg3 {[%emt 0:00:12]} 1-0

[Event "Teplice Open 2019"]
[Site "Teplice"]
[Date "2019.06.19"]
[Round "5.24"]
[White "Svanda, Ondrej"]
[Black "Shevchenko, Kirill"]
[Result "0-1"]
[ECO "B92"]
[WhiteElo "2261"]
[BlackElo "2539"]
[Annotator "RC"]
[PlyCount "184"]
[EventDate "2019.06.15"]
[EventType "swiss"]
[EventCountry "CZE"]
[SourceTitle "playchess.com"]
[Source "ChessBase"]
[SourceQuality "1"]
[TimeControl "40/5400+30:1800+30"]

1. e4 {[%emt 0:38:29]} c5 {[%emt 0:00:07]} 2. Nf3 {[%emt 0:00:05]} d6 {[%emt 0:00:03]} 3. d4 {[%emt 0:00:07]} cxd4 {[%emt 0:00:03]} 4. Nxd4 {[%emt 0:00:05]} Nf6 {[%emt 0:00:03]} 5. Nc3 {[%emt 0:00:06]} a6 {[%emt 0:00:04]} 6. Be2 {[%emt 0:00:06]} e5 {[%emt 0:00:05]} 7. Nb3 {[%emt 0:00:07]} Be6 {[%emt 0:00:10]} 8. O-O {[%emt 0:00:17]} Be7 {[%emt 0:01:05]} 9. Re1 {[%emt 0:01:26]} O-O {[%emt 0:01:25]} 10. Bf3 {[%emt 0:00:07]} Nbd7 {[%emt 0:00:56]} 11. a4 {[%emt 0:00:34]} Qc7 {[%emt 0:05:25]} 12. a5 {[%emt 0:02:55]} Rfc8 {[%emt 0:02:54]} 13. Be3 {[%emt 0:03:17]} h6 {[%emt 0:06:20]} 14. h3 {[%emt 0:02:31]} Nf8 {[%emt 0:06:26]} 15. Re2 {[%emt 0:13:00]} Ng6 {[%emt 0:10:47]} 16. Rd2 {[%emt 0:06:21]} Qc6 {[%emt 0:12:38]} 17. Nc1 {[%emt 0:13:11]} Nh4 {[%emt 0:08:03]} 18. Nd3 {[%emt 0:05:23]} Qe8 {[%emt 0:01:41]} 19. Nb4 {[%emt 0:15:01]} Rc4 {[%emt 0:05:15]} 20. Nbd5 {[%emt 0:01:33]} Nxf3+ {[%emt 0:08:03]} 21. Qxf3 {[%emt 0:01:16]} Bxd5 {[%emt 0:00:43]} 22. exd5 {[%emt 0:01:06]} Rac8 {[%emt 0:00:20]} 23. Ra3 {[%emt 0:07:47]} Rb4 {[%emt 0:03:50]} 24. Nd1 {[%emt 0:03:27]} Ra4 {[%emt 0:09:29]} 25. Bb6 {[%emt 0:03:10]} Ne4 {[%emt 0:03:38]} 26. Re2 {[%emt 0:00:47]} Ng5 {[%emt 0:00:42]} 27. Qb3 {[%emt 0:03:16]} Rxa3 {[%emt 0:00:05]} 28. bxa3 {[%emt 0:00:39]} f5 {[%emt 0:01:30]} 29. c4 {[%emt 0:05:26]} Qg6 {[%emt 0:01:59]} 30. f4 {[%emt 0:03:05]} Ne4 {[%emt 0:03:49]} 31. Nf2 {[%emt 0:03:54]} exf4 {[%emt 0:01:29]} 32. c5 {[%emt 0:03:49]} Kh7 {[%emt 0:01:21]} 33. Qf3 {[%emt 0:01:02]} Nxf2 {[%emt 0:05:27]} 34. Rxe7 {[%emt 0:01:01]} Ne4 35. Qxf4 {[%emt 0:00:45]} dxc5 {[%emt 0:01:13]} 36. Re6 {[%emt 0:00:41]} Qh5 {[%emt 0:00:59]} 37. d6 {[%emt 0:00:28]} Kg8 {[%emt 0:00:15]} 38. Kh2 {[%emt 0:00:41]} Qd1 {[%emt 0:00:25]} 39. Qe5 {[%emt 0:00:33]} Rf8 {[%emt 0:00:46]} 40. Rg6 {[%emt 0:00:35]} Nf6 {[%emt 0:00:27]} 41. Qe6+ {[%emt 0:19:27]} Rf7 {[%emt 0:12:09]} 42. Bxc5 {[%emt 0:06:36]} Qa4 {[%emt 0:11:29]} 43. Qc8+ {[%emt 0:03:47]} Qe8 {[%emt 0:05:51]} 44. Qxf5 {[%emt 0:02:11]} h5 {[%emt 0:00:52]} 45. d7 {[%emt 0:01:01]} Qxd7 {[%emt 0:00:53]} 46. Qxd7 {[%emt 0:00:06]} Rxd7 {[%emt 0:00:03]} 47. Bb4 {[%emt 0:00:17]} Kf7 {[%emt 0:01:35]} 48. Rg3 {[%emt 0:00:25]} Ne4 {[%emt 0:00:36]} 49. Re3 {[%emt 0:00:30]} Rd4 {[%emt 0:00:06]} 50. Rf3+ {[%emt 0:00:30]} Ke6 {[%emt 0:00:55]} 51. Rf8 {[%emt 0:00:07]} Rd7 {[%emt 0:00:54]} 52. Rh8 {[%emt 0:00:33]} Nf6 {[%emt 0:00:59]} 53. Bc3 {[%emt 0:00:47]} g6 {[%emt 0:00:10]} 54. Rc8 {[%emt 0:00:50]} Ne4 {[%emt 0:00:24]} 55. Bb4 {[%emt 0:00:15]} Nf6 {[%emt 0:00:37]} 56. Rc4 {[%emt 0:00:39]} Nd5 {[%emt 0:00:46]} 57. Kg3 {[%emt 0:00:43]} Ke5 {[%emt 0:00:50]} 58. Kf3 {[%emt 0:00:25]} Rf7+ {[%emt 0:00:04]} 59. Kg3 {[%emt 0:00:12]} Ne3 {[%emt 0:00:56]} 60. Rc8 {[%emt 0:01:10]} Nf5+ {[%emt 0:00:27]} 61. Kh2 {[%emt 0:00:07]} Rd7 {[%emt 0:00:34]} 62. Rg8 {[%emt 0:00:20]} Kf6 {[%emt 0:00:01]} 63. Rf8+ {[%emt 0:00:29]} Ke6 {[%emt 0:00:27]} 64. Rg8 {[%emt 0:00:07]} Kf6 {[%emt 0:00:59]} 65. Rf8+ {[%emt 0:00:04]} Kg5 {[%emt 0:00:18]} 66. Rc8 {[%emt 0:00:14]} Ne3 {[%emt 0:00:23]} 67. Re8 {[%emt 0:00:48]} Kf4 {[%emt 0:00:27]} 68. Rf8+ {[%emt 0:00:20]} Nf5 {[%emt 0:00:24]} 69. Rc8 {[%emt 0:01:13]} h4 {[%emt 0:00:42]} 70. Rc4+ {[%emt 0:00:32]} Rd4 {[%emt 0:00:51]} 71. Rc3 {[%emt 0:00:24]} Re4 {[%emt 0:00:31]} 72. Rc7 {[%emt 0:00:39]} Re2 {[%emt 0:00:19]} 73. Rc4+ {[%emt 0:00:35]} Ke5 {[%emt 0:00:30]} 74. Rg4 {[%emt 0:00:22]} Kf6 {[%emt 0:00:37]} 75. Bc3+ {[%emt 0:00:49]} Kf7 76. Kg1 {[%emt 0:00:45]} Rc2 {[%emt 0:00:59]} 77. Bb4 {[%emt 0:00:23]} Kf6 {[%emt 0:00:24]} 78. Re4 {[%emt 0:00:33]} g5 {[%emt 0:00:19]} 79. Re1 {[%emt 0:00:31]} Nd4 {[%emt 0:00:48]} 80. Re3 {[%emt 0:00:40]} Ne2+ {[%emt 0:00:24]} 81. Kh2 {[%emt 0:00:32]} Nf4 {[%emt 0:00:11]} 82. Rc3 {[%emt 0:00:25]} Rxg2+ {[%emt 0:00:28]} 83. Kh1 {[%emt 0:00:03]} Rg3 {[%emt 0:00:31]} 84. Rxg3 {[%emt 0:00:42]} hxg3 {[%emt 0:00:04]} 85. Be1 {[%emt 0:00:14]} g2+ {[%emt 0:00:29]} 86. Kh2 {[%emt 0:00:13]} g1=Q+ {[%emt 0:00:52]} 87. Kxg1 {[%emt 0:00:02]} Nxh3+ 88. Kg2 {[%emt 0:00:16]} g4 {[%emt 0:00:03]} 89. Kg3 {[%emt 0:00:36]} Kf5 {[%emt 0:00:04]} 90. Bd2 {[%emt 0:00:02]} Ng5 {[%emt 0:00:07]} 91. Kg2 {[%emt 0:00:16]} Ne4 {[%emt 0:00:05]} 92. Bb4 {[%emt 0:00:04]} Ke5 {[%emt 0:00:42]} 0-1

[Event "Teplice Open 2019"]
[Site "Teplice"]
[Date "2019.06.19"]
[Round "5.25"]
[White "Janik, Igor"]
[Black "Brozyna, Mateusz"]
[Result "1-0"]
[ECO "D10"]
[WhiteElo "2483"]
[BlackElo "2252"]
[Annotator "ChessBase"]
[PlyCount "83"]
[EventDate "2019.06.15"]
[EventType "swiss"]
[EventCountry "CZE"]
[SourceTitle "playchess.com"]
[Source "ChessBase"]
[SourceQuality "1"]
[TimeControl "40/5400+30:1800+30"]

1. d4 {[%emt 0:00:00]} d5 {[%emt 0:00:00]} 2. c4 {[%emt 0:00:00]} c6 {[%emt 0:00:00]} 3. cxd5 {[%emt 0:00:00]} cxd5 {[%emt 0:00:00]} 4. Bf4 {[%emt 0:00:00]} Nc6 {[%emt 0:00:51]} 5. e3 {[%emt 0:00:00]} Nf6 {[%emt 0:00:18]} 6. Nc3 {[%emt 0:00:02]} a6 {[%emt 0:00:49]} 7. Bd3 {[%emt 0:00:07]} e6 {[%emt 0:02:30]} 8. Rc1 {[%emt 0:00:06]} Bd6 {[%emt 0:02:21]} 9. Bxd6 {[%emt 0:00:05]} Qxd6 {[%emt 0:00:08]} 10. f4 {[%emt 0:00:02]} Ne7 {[%emt 0:07:56]} 11. Nf3 {[%emt 0:01:44]} Nf5 {[%emt 0:02:31]} 12. Qd2 {[%emt 0:00:53]} h5 {[%emt 0:03:18]} 13. O-O {[%emt 0:00:59]} g6 {[%emt 0:03:29]} 14. Ne5 {[%emt 0:01:10]} Bd7 {[%emt 0:03:00]} 15. Rc2 {[%emt 0:02:45]} Ng4 {[%emt 0:06:33]} 16. Bxf5 {[%emt 0:01:17]} gxf5 {[%emt 0:07:43]} 17. h3 {[%emt 0:00:52]} Nf6 {[%emt 0:06:28]} 18. Qf2 {[%emt 0:00:02]} h4 {[%emt 0:09:53]} 19. Rfc1 {[%emt 0:00:39]} Ke7 {[%emt 0:02:00]} 20. Nf3 {[%emt 0:04:26]} Bc6 {[%emt 0:04:28]} 21. Nxh4 {[%emt 0:02:18]} Rag8 {[%emt 0:03:10]} 22. Qe1 {[%emt 0:02:36]} Ne4 {[%emt 0:03:55]} 23. Kh2 {[%emt 0:02:08]} f6 {[%emt 0:08:01]} 24. Nf3 {[%emt 0:00:25]} Kf7 {[%emt 0:03:33]} 25. Nxe4 {[%emt 0:00:42]} fxe4 {[%emt 0:00:42]} 26. Ng1 {[%emt 0:00:15]} e5 {[%emt 0:01:30]} 27. Ne2 {[%emt 0:00:51]} Bd7 {[%emt 0:02:28]} 28. Qf1 {[%emt 0:06:23]} Rxg2+ {[%emt 0:08:03]} 29. Qxg2 {[%emt 0:00:07]} Bxh3 {[%emt 0:00:12]} 30. Qxh3 {[%emt 0:00:32]} Rxh3+ {[%emt 0:00:07]} 31. Kxh3 {[%emt 0:00:04]} Qd7+ {[%emt 0:00:20]} 32. Kg3 {[%emt 0:00:09]} Qf5 {[%emt 0:00:10]} 33. Rc7+ {[%emt 0:00:05]} Ke6 {[%emt 0:00:07]} 34. Rg7 {[%emt 0:00:18]} Qh5 {[%emt 0:00:12]} 35. Kf2 {[%emt 0:00:32]} Qf3+ {[%emt 0:00:25]} 36. Ke1 {[%emt 0:00:07]} exf4 {[%emt 0:04:18]} 37. Nxf4+ {[%emt 0:01:09]} Kd6 {[%emt 0:02:29]} 38. Kd2 {[%emt 0:00:05]} Qf2+ {[%emt 0:00:19]} 39. Ne2 {[%emt 0:00:04]} f5 {[%emt 0:01:11]} 40. Rcg1 {[%emt 0:00:04]} Kc6 {[%emt 0:00:19]} 41. R1g6+ {[%emt 0:30:03]} Kb5 {[%emt 0:30:15]} 42. Rxb7+ {[%emt 0:00:03]} 1-0

[Event "Teplice Open 2019"]
[Site "Teplice"]
[Date "2019.06.19"]
[Round "5.26"]
[White "Blohberger, Felix"]
[Black "Navrotescu, Andreea-Cristiana"]
[Result "1-0"]
[ECO "B31"]
[WhiteElo "2475"]
[BlackElo "2233"]
[Annotator "ChessBase"]
[PlyCount "79"]
[EventDate "2019.06.15"]
[EventType "swiss"]
[EventCountry "CZE"]
[SourceTitle "playchess.com"]
[Source "ChessBase"]
[SourceQuality "1"]
[TimeControl "40/5400+30:1800+30"]

1. e4 {[%emt 0:00:00]} c5 {[%emt 0:00:00]} 2. Nf3 {[%emt 0:00:00]} Nc6 {[%emt 0:00:00]} 3. Bb5 {[%emt 0:00:00]} g6 {[%emt 0:00:00]} 4. Bxc6 {[%emt 0:02:19]} bxc6 {[%emt 0:00:00]} 5. O-O {[%emt 0:00:23]} Bg7 {[%emt 0:00:00]} 6. c3 {[%emt 0:00:21]} Nh6 {[%emt 0:01:13]} 7. d4 {[%emt 0:00:49]} cxd4 {[%emt 0:00:35]} 8. cxd4 {[%emt 0:00:06]} d5 {[%emt 0:00:27]} 9. e5 {[%emt 0:01:32]} O-O {[%emt 0:00:31]} 10. Re1 {[%emt 0:03:42]} f6 {[%emt 0:01:36]} 11. e6 {[%emt 0:17:06]} Nf5 {[%emt 0:05:08]} 12. Nc3 {[%emt 0:02:49]} Nd6 {[%emt 0:00:42]} 13. Na4 {[%emt 0:00:58]} Ne4 {[%emt 0:00:48]} 14. Nc5 {[%emt 0:00:46]} f5 {[%emt 0:02:03]} 15. Bf4 {[%emt 0:02:03]} Nxc5 {[%emt 0:03:37]} 16. dxc5 {[%emt 0:00:19]} Bxb2 {[%emt 0:00:10]} 17. Be5 {[%emt 0:15:07]} Bxe5 {[%emt 0:01:08]} 18. Nxe5 {[%emt 0:07:15]} Qc7 {[%emt 0:22:52]} 19. Qa4 {[%emt 0:13:29]} Bxe6 {[%emt 0:01:41]} 20. Qh4 {[%emt 0:04:26]} Rf6 {[%emt 0:04:48]} 21. Nf3 {[%emt 0:02:47]} Kg7 {[%emt 0:03:07]} 22. Re5 {[%emt 0:02:36]} Bg8 {[%emt 0:02:35]} 23. Rae1 {[%emt 0:01:30]} e6 {[%emt 0:01:17]} 24. Qa4 {[%emt 0:01:05]} Rb8 {[%emt 0:03:38]} 25. h4 {[%emt 0:00:17]} Rb5 {[%emt 0:01:24]} 26. Qd4 {[%emt 0:05:54]} Qe7 {[%emt 0:10:23]} 27. h5 {[%emt 0:01:21]} Rxc5 {[%emt 0:03:19]} 28. Qb4 {[%emt 0:04:00]} a5 {[%emt 0:01:28]} 29. Qa3 {[%emt 0:02:50]} Qa7 {[%emt 0:06:45]} 30. Qe3 {[%emt 0:01:21]} f4 {[%emt 0:01:20]} 31. Qd4 {[%emt 0:02:00]} h6 {[%emt 0:06:13]} 32. hxg6 {[%emt 0:02:02]} Qb6 {[%emt 0:03:51]} 33. Rf5 {[%emt 0:02:38]} exf5 {[%emt 0:00:05]} 34. Re7+ {[%emt 0:00:06]} Kxg6 {[%emt 0:00:08]} 35. Nh4+ {[%emt 0:02:16]} Kh5 {[%emt 0:00:51]} 36. Qxf6 {[%emt 0:00:08]} Rc1+ {[%emt 0:08:25]} 37. Kh2 {[%emt 0:00:04]} Qxf2 {[%emt 0:00:58]} 38. Qg6+ {[%emt 0:00:27]} Kxh4 {[%emt 0:00:07]} 39. Qxh6+ {[%emt 0:00:04]} Kg4 {[%emt 0:00:05]} 40. Rg7# {[%emt 0:00:04]} 1-0

[Event "Teplice Open 2019"]
[Site "Teplice"]
[Date "2019.06.19"]
[Round "5.27"]
[White "Pacan-Milej, Kosma"]
[Black "Gavrilescu, David"]
[Result "1/2-1/2"]
[ECO "E34"]
[WhiteElo "2247"]
[BlackElo "2475"]
[Annotator "ChessBase"]
[PlyCount "62"]
[EventDate "2019.06.15"]
[EventType "swiss"]
[EventCountry "CZE"]
[SourceTitle "playchess.com"]
[Source "ChessBase"]
[SourceQuality "1"]
[TimeControl "40/5400+30:1800+30"]

1. d4 {[%emt 0:00:00]} Nf6 {[%emt 0:00:01]} 2. c4 {[%emt 0:00:00]} e6 {[%emt 0:00:37]} 3. Nc3 {[%emt 0:00:00]} Bb4 {[%emt 0:00:30]} 4. Qc2 {[%emt 0:00:00]} d5 {[%emt 0:00:43]} 5. cxd5 {[%emt 0:00:00]} Qxd5 {[%emt 0:00:42]} 6. Nf3 {[%emt 0:00:05]} Qf5 {[%emt 0:00:55]} 7. Qb3 {[%emt 0:00:07]} Nc6 {[%emt 0:00:43]} 8. Bd2 {[%emt 0:00:24]} O-O {[%emt 0:00:56]} 9. h3 {[%emt 0:01:02]} a5 {[%emt 0:01:01]} 10. g4 {[%emt 0:03:18]} a4 {[%emt 0:09:34]} 11. Qd1 {[%emt 0:00:26]} Qa5 {[%emt 0:02:15]} 12. a3 {[%emt 0:06:09]} Bxc3 {[%emt 0:06:54]} 13. Bxc3 {[%emt 0:01:03]} Qd5 {[%emt 0:13:12]} 14. Bg2 {[%emt 0:00:28]} Ne4 {[%emt 0:09:26]} 15. O-O {[%emt 0:16:59]} Qd6 {[%emt 0:10:31]} 16. Nd2 {[%emt 0:09:17]} Nxd2 {[%emt 0:08:32]} 17. Qxd2 {[%emt 0:00:09]} Rd8 {[%emt 0:00:14]} 18. Rfd1 {[%emt 0:01:31]} b6 {[%emt 0:05:45]} 19. d5 {[%emt 0:28:34]} exd5 {[%emt 0:01:36]} 20. Bxd5 {[%emt 0:03:19]} Bb7 {[%emt 0:03:23]} 21. Bxc6 {[%emt 0:07:31]} Qxd2 {[%emt 0:07:11]} 22. Bxd2 {[%emt 0:02:16]} Bxc6 {[%emt 0:00:24]} 23. Bf4 {[%emt 0:00:19]} Re8 {[%emt 0:03:47]} 24. Rd2 {[%emt 0:01:31]} Bb5 {[%emt 0:02:11]} 25. Bxc7 {[%emt 0:03:05]} Rxe2 {[%emt 0:00:06]} 26. Rad1 {[%emt 0:04:04]} h6 {[%emt 0:02:54]} 27. Rxe2 {[%emt 0:05:22]} Bxe2 {[%emt 0:00:02]} 28. Rd8+ {[%emt 0:00:07]} Rxd8 {[%emt 0:00:05]} 29. Bxd8 {[%emt 0:00:02]} b5 {[%emt 0:00:06]} 30. Kg2 {[%emt 0:00:10]} f6 {[%emt 0:00:16]} 31. Ba5 {[%emt 0:00:12]} Kf7 {[%emt 0:00:05]} 1/2-1/2